[Event "14e Open International de Quenza"]
[Site "Quenza, France"]
[Date "????.??.??"]
[Round "5.9"]
[White "Roubert, Emile"]
[Black "Ratier-Fontana, Matteo"]
[Result "1-0"]
[TimeControl "5min+3s"]
[WhiteElo "2055"]
[BlackElo "2275"]

1. e4 {[%clk 00:05:03]} {[%emt 00:16:20]} d6 {[%clk 00:05:03]} {[%emt
00:00:03]} 2. d4 {[%clk 00:05:03]} {[%emt 00:00:01]} Nf6 {[%clk 00:05:03]}
{[%emt 00:00:01]} 3. Nc3 {[%clk 00:05:03]} Nbd7 {[%clk 00:05:03]} {[%emt
00:00:02]} 4. h3 {[%clk 00:05:03]} {[%emt 00:00:02]} e5 {[%clk 00:05:03]}
{[%emt 00:00:01]} 5. Nge2 {[%clk 00:05:03]} {[%emt 00:00:01]} Be7 {[%clk
00:05:03]} {[%emt 00:00:02]} 6. g4 {[%clk 00:05:03]} {[%emt 00:00:02]} h6
{[%clk 00:05:03]} {[%emt 00:00:02]} 7. Bg2 {[%clk 00:05:03]} {[%emt 00:00:01]}
Nf8 {[%clk 00:04:55]} {[%emt 00:00:11]} 8. Be3 {[%clk 00:04:21]} {[%emt
00:00:45]} Ng6 {[%clk 00:04:55]} {[%emt 00:00:03]} 9. O-O {[%clk 00:04:18]}
{[%emt 00:00:06]} Nh4 {[%clk 00:04:27]} {[%emt 00:00:32]} 10. Bh1 {[%clk
00:04:18]} {[%emt 00:00:01]} g5 {[%clk 00:04:27]} {[%emt 00:00:01]} 11. Ng3
{[%clk 00:04:15]} {[%emt 00:00:06]} Rg8 {[%clk 00:04:19]} {[%emt 00:00:11]} 12.
Nd5 {[%clk 00:03:21]} {[%emt 00:00:57]} c6 {[%clk 00:03:40]} {[%emt 00:00:42]}
13. Nxf6+ {[%clk 00:03:21]} {[%emt 00:00:02]} Bxf6 {[%clk 00:03:40]} {[%emt
00:00:01]} 14. c3 {[%clk 00:03:13]} {[%emt 00:00:10]} Qc7 {[%clk 00:03:37]}
{[%emt 00:00:06]} 15. Nh5 {[%clk 00:03:05]} {[%emt 00:00:11]} Be7 {[%clk
00:03:34]} {[%emt 00:00:05]} 16. a4 {[%clk 00:02:54]} {[%emt 00:00:15]} Ng6
{[%clk 00:03:26]} {[%emt 00:00:11]} 17. Bf3 {[%clk 00:02:15]} {[%emt 00:00:42]}
Be6 {[%clk 00:03:21]} {[%emt 00:00:08]} 18. a5 {[%clk 00:02:05]} {[%emt
00:00:13]} Nf4 {[%clk 00:03:16]} {[%emt 00:00:07]} 19. Kh2 {[%emt 00:00:17]}
Qc8 {[%clk 00:02:53]} {[%emt 00:00:23]} 20. Ng3 {[%clk 00:01:52]} {[%emt
00:00:05]} h5 {[%clk 00:02:42]} {[%emt 00:00:13]} 21. Nf5 {[%clk 00:01:52]}
{[%emt 00:00:01]} Bxf5 {[%clk 00:02:37]} {[%emt 00:00:08]} 22. exf5 {[%clk
00:01:51]} {[%emt 00:00:04]} hxg4 {[%clk 00:02:24]} {[%emt 00:00:16]} 23. Bxg4
{[%clk 00:01:45]} {[%emt 00:00:09]} Bf6 {[%clk 00:01:45]} {[%emt 00:00:42]} 24.
Bxf4 {[%emt 00:00:29]} gxf4 {[%clk 00:01:39]} {[%emt 00:00:06]} 25. dxe5 {[%clk
00:01:20]} {[%emt 00:00:06]} Bxe5 {[%clk 00:01:30]} {[%emt 00:00:12]} 26. Qf3
{[%clk 00:01:14]} {[%emt 00:00:08]} Qc7 {[%clk 00:01:25]} {[%emt 00:00:08]} 27.
Rfe1 {[%clk 00:01:02]} {[%emt 00:00:15]} Ke7 {[%clk 00:01:11]} {[%emt
00:00:17]} 28. Qxf4 {[%clk 00:00:47]} {[%emt 00:00:18]} Kd8 {[%clk 00:00:36]}
{[%emt 00:00:38]} 29. Rxe5 {[%clk 00:00:47]} {[%emt 00:00:03]} dxe5 {[%clk
00:00:36]} {[%emt 00:00:01]} 30. Rd1+ {[%clk 00:00:44]} {[%emt 00:00:06]} Ke7
{[%clk 00:00:32]} {[%emt 00:00:08]} 31. f6+ {[%clk 00:00:44]} {[%emt 00:00:03]}
Ke8 {[%clk 00:00:32]} {[%emt 00:00:02]} 32. Re1 {[%clk 00:00:44]} {[%emt
00:00:03]} Kd8 {[%clk 00:00:23]} {[%emt 00:00:12]} 33. Rxe5 {[%clk 00:00:42]}
{[%emt 00:00:05]} Qd6 {[%clk 00:00:09]} {[%emt 00:00:17]} 34. Re8+ {[%clk
00:00:40]} {[%emt 00:00:04]} Kc7 {[%clk 00:00:07]} {[%emt 00:00:06]} 35. Re7+
{[%clk 00:00:40]} {[%emt 00:00:01]} 1-0

[Event "14e Open International de Quenza"]
[Site "Quenza, France"]
[Date "????.??.??"]
[Round "5.10"]
[White "Tomasi, Albert"]
[Black "Chen, Muxi"]
[Result "1-0"]
[TimeControl "5min+3s"]
[WhiteElo "2287"]
[BlackElo "2224"]

1. e4 {[%clk 00:05:03]} {[%emt 00:00:02]} c5 {[%clk 00:05:03]} {[%emt
00:00:02]} 2. Nf3 {[%clk 00:05:03]} {[%emt 00:00:02]} Nc6 {[%clk 00:05:03]}
{[%emt 00:00:01]} 3. d4 {[%clk 00:05:03]} {[%emt 00:00:02]} cxd4 {[%clk
00:05:03]} {[%emt 00:00:01]} 4. Nxd4 {[%clk 00:05:03]} {[%emt 00:00:02]} Nf6
{[%clk 00:05:03]} {[%emt 00:00:02]} 5. Nc3 {[%clk 00:05:03]} {[%emt 00:00:02]}
e5 {[%clk 00:05:03]} {[%emt 00:00:01]} 6. Ndb5 {[%clk 00:05:03]} {[%emt
00:00:01]} d6 {[%clk 00:05:03]} {[%emt 00:00:01]} 7. Bg5 {[%clk 00:05:03]}
{[%emt 00:00:01]} a6 {[%clk 00:05:03]} {[%emt 00:00:01]} 8. Na3 {[%clk
00:05:03]} {[%emt 00:00:01]} b5 {[%clk 00:05:03]} {[%emt 00:00:01]} 9. Nd5
{[%clk 00:05:03]} {[%emt 00:00:02]} Be7 {[%clk 00:05:03]} {[%emt 00:00:01]} 10.
Bxf6 {[%clk 00:05:03]} {[%emt 00:00:02]} Bxf6 {[%clk 00:05:03]} {[%emt
00:00:01]} 11. c4 {[%clk 00:05:03]} {[%emt 00:00:02]} b4 {[%clk 00:05:03]}
{[%emt 00:00:02]} 12. Nc2 {[%clk 00:05:03]} {[%emt 00:00:02]} a5 {[%clk
00:05:03]} {[%emt 00:00:01]} 13. h4 {[%clk 00:04:58]} {[%emt 00:00:08]} h5
{[%clk 00:04:38]} {[%emt 00:00:28]} 14. g3 {[%clk 00:04:58]} {[%emt 00:00:04]}
g6 {[%clk 00:04:38]} {[%emt 00:00:03]} 15. Bg2 {[%clk 00:04:57]} {[%emt
00:00:04]} Bg7 {[%clk 00:04:35]} {[%emt 00:00:06]} 16. O-O {[%clk 00:04:56]}
{[%emt 00:00:04]} O-O {[%clk 00:04:31]} {[%emt 00:00:07]} 17. Qd2 {[%clk
00:04:56]} {[%emt 00:00:04]} Be6 {[%clk 00:04:16]} {[%emt 00:00:18]} 18. Rfd1
{[%clk 00:04:40]} {[%emt 00:00:18]} Qb8 {[%clk 00:04:08]} {[%emt 00:00:11]} 19.
b3 {[%clk 00:04:26]} {[%emt 00:00:18]} Qb7 {[%clk 00:03:59]} {[%emt 00:00:12]}
20. Rab1 {[%clk 00:03:51]} {[%emt 00:00:37]} Bxd5 {[%clk 00:03:09]} {[%emt
00:00:53]} 21. Qxd5 {[%clk 00:03:51]} {[%emt 00:00:03]} a4 {[%clk 00:03:04]}
{[%emt 00:00:08]} 22. Nxb4 {[%clk 00:02:39]} {[%emt 00:01:16]} Qxb4 {[%clk
00:02:51]} {[%emt 00:00:16]} 23. Qxc6 {[%clk 00:02:39]} {[%emt 00:00:01]} axb3
{[%clk 00:02:30]} {[%emt 00:00:24]} 24. axb3 {[%clk 00:02:35]} {[%emt
00:00:07]} Rfd8 {[%clk 00:02:26]} {[%emt 00:00:07]} 25. Qb5 {[%clk 00:02:12]}
{[%emt 00:00:26]} Rab8 {[%clk 00:02:04]} {[%emt 00:00:24]} 26. Qxb4 {[%clk
00:02:08]} {[%emt 00:00:07]} Rxb4 {[%clk 00:02:04]} {[%emt 00:00:02]} 27. c5
{[%clk 00:02:01]} {[%emt 00:00:10]} Bf8 {[%clk 00:01:59]} {[%emt 00:00:09]} 28.
Bh3 {[%clk 00:01:23]} {[%emt 00:00:41]} Rxe4 {[%clk 00:01:50]} {[%emt
00:00:12]} 29. c6 {[%clk 00:01:23]} {[%emt 00:00:01]} f5 {[%clk 00:01:50]}
{[%emt 00:00:01]} 30. b4 {[%clk 00:01:23]} Rc4 {[%clk 00:01:35]} {[%emt
00:00:18]} 31. Rdc1 {[%clk 00:01:01]} {[%emt 00:00:25]} d5 {[%clk 00:01:29]}
{[%emt 00:00:09]} 32. b5 {[%clk 00:00:59]} {[%emt 00:00:05]} Bc5 {[%clk
00:01:13]} {[%emt 00:00:19]} 33. Rxc4 {[%clk 00:00:54]} {[%emt 00:00:09]} dxc4
{[%clk 00:01:13]} {[%emt 00:00:01]} 34. b6 {[%clk 00:00:41]} {[%emt 00:00:17]}
c3 {[%clk 00:00:45]} {[%emt 00:00:31]} 35. c7 {[%clk 00:00:39]} {[%emt
00:00:05]} Rf8 {[%clk 00:00:41]} {[%emt 00:00:06]} 36. b7 {[%clk 00:00:39]}
{[%emt 00:00:04]} c2 {[%clk 00:00:41]} {[%emt 00:00:02]} 37. Rc1 {[%clk
00:00:39]} {[%emt 00:00:01]} 1-0

[Event "14e Open International de Quenza"]
[Site "Quenza, France"]
[Date "????.??.??"]
[Round "5.11"]
[White "Have, Didier"]
[Black "Calistri, Tristan"]
[Result "1-0"]
[TimeControl "5min+3s"]
[WhiteElo "1903"]
[BlackElo "2198"]

1. e4 {[%clk 00:05:03]} {[%emt 00:06:06]} c5 {[%clk 00:05:03]} {[%emt
00:00:02]} 2. d4 {[%clk 00:05:03]} cxd4 {[%clk 00:05:03]} {[%emt 00:00:02]} 3.
c3 {[%clk 00:05:03]} Nf6 {[%clk 00:05:03]} {[%emt 00:00:02]} 4. e5 {[%clk
00:05:03]} Nd5 {[%clk 00:05:03]} 5. Qxd4 {[%clk 00:05:03]} {[%emt 00:00:04]} e6
{[%clk 00:05:03]} {[%emt 00:00:01]} 6. Nf3 {[%clk 00:05:03]} {[%emt 00:00:02]}
Nc6 {[%clk 00:05:01]} {[%emt 00:00:05]} 7. Qe4 {[%clk 00:05:03]} {[%emt
00:00:03]} f5 {[%clk 00:05:01]} {[%emt 00:00:03]} 8. Qe2 {[%clk 00:05:03]} b5
{[%clk 00:04:51]} {[%emt 00:00:13]} 9. g3 {[%clk 00:04:55]} {[%emt 00:00:11]}
a5 {[%clk 00:04:13]} {[%emt 00:00:41]} 10. Bg2 {[%clk 00:04:41]} {[%emt
00:00:17]} Ba6 {[%clk 00:03:17]} {[%emt 00:00:59]} 11. O-O {[%clk 00:04:39]}
{[%emt 00:00:05]} Bc5 {[%clk 00:03:13]} {[%emt 00:00:07]} 12. Rd1 {[%clk
00:04:21]} {[%emt 00:00:21]} O-O {[%clk 00:03:01]} {[%emt 00:00:15]} 13. Ng5
{[%clk 00:03:56]} {[%emt 00:00:27]} Nde7 {[%clk 00:02:28]} {[%emt 00:00:36]} 14.
Nxe6 {[%clk 00:03:42]} {[%emt 00:00:17]} dxe6 {[%clk 00:02:20]} {[%emt
00:00:11]} 15. Rxd8 {[%clk 00:03:42]} {[%emt 00:00:01]} Raxd8 {[%clk 00:02:20]}
{[%emt 00:00:01]} 16. Bg5 {[%clk 00:03:27]} {[%emt 00:00:18]} Rd7 {[%clk
00:01:47]} {[%emt 00:00:36]} 17. Nd2 {[%clk 00:02:55]} {[%emt 00:00:35]} h6
{[%clk 00:01:47]} {[%emt 00:00:02]} 18. Nb3 {[%clk 00:02:47]} {[%emt 00:00:11]}
Bb6 {[%clk 00:01:42]} {[%emt 00:00:08]} 19. Be3 {[%clk 00:02:41]} {[%emt
00:00:09]} Bxe3 {[%clk 00:01:18]} {[%emt 00:00:26]} 20. Qxe3 {[%clk 00:02:41]}
{[%emt 00:00:02]} Bc8 {[%clk 00:01:18]} {[%emt 00:00:03]} 21. Nc5 {[%clk
00:02:39]} {[%emt 00:00:04]} Nd5 {[%clk 00:01:13]} {[%emt 00:00:08]} 22. Qe2
{[%clk 00:02:09]} {[%emt 00:00:33]} Rdd8 {[%clk 00:01:12]} {[%emt 00:00:04]} 23.
Rd1 {[%clk 00:02:02]} {[%emt 00:00:10]} Nce7 {[%clk 00:01:03]} {[%emt
00:00:11]} 24. Qxb5 {[%clk 00:01:32]} {[%emt 00:00:34]} Nxc3 {[%clk 00:01:03]}
{[%emt 00:00:04]} 25. bxc3 {[%clk 00:01:04]} {[%emt 00:00:30]} Rxd1+ {[%clk
00:01:03]} {[%emt 00:00:02]} 26. Bf1 {[%clk 00:01:04]} f4 {[%clk 00:00:50]}
{[%emt 00:00:16]} 27. Qb3 {[%clk 00:00:47]} {[%emt 00:00:20]} Rd5 {[%clk
00:00:42]} {[%emt 00:00:10]} 28. Nd3 {[%clk 00:00:34]} {[%emt 00:00:17]} fxg3
{[%clk 00:00:40]} {[%emt 00:00:06]} 29. hxg3 {[%clk 00:00:34]} {[%emt
00:00:02]} Ba6 {[%clk 00:00:33]} {[%emt 00:00:10]} 30. c4 {[%clk 00:00:34]}
{[%emt 00:00:02]} Rd4 {[%clk 00:00:33]} 31. Nf4 {[%clk 00:00:29]} {[%emt
00:00:09]} Rc8 {[%clk 00:00:20]} {[%emt 00:00:16]} 32. Nxe6 {[%clk 00:00:29]}
{[%emt 00:00:03]} Bxc4 {[%clk 00:00:20]} 33. Qa3 {[%clk 00:00:26]} {[%emt
00:00:06]} Bxe6 {[%clk 00:00:13]} {[%emt 00:00:09]} 34. Qxe7 {[%clk 00:00:26]}
{[%emt 00:00:02]} Bxa2 {[%clk 00:00:10]} {[%emt 00:00:06]} 35. Kg2 {[%clk
00:00:25]} {[%emt 00:00:04]} Bd5+ {[%clk 00:00:10]} 36. Kh3 {[%clk 00:00:21]}
{[%emt 00:00:07]} Bc6 {[%clk 00:00:09]} {[%emt 00:00:04]} 37. Qe6+ {[%clk
00:00:21]} {[%emt 00:00:02]} Bd5 {[%emt 00:00:15]} 38. Qe7 1-0

[Event "14e Open International de Quenza"]
[Site "Quenza, France"]
[Date "????.??.??"]
[Round "5.12"]
[White "Ternault, Mathieu"]
[Black "Cardi, Jean"]
[Result "1-0"]
[TimeControl "5min+3s"]
[WhiteElo "2276"]
[BlackElo "1976"]

1. d4 {[%clk 00:05:03]} {[%emt 00:00:03]} Nf6 {[%clk 00:05:03]} {[%emt
00:00:02]} 2. Nf3 {[%clk 00:05:03]} {[%emt 00:00:02]} c5 {[%clk 00:05:02]}
{[%emt 00:00:05]} 3. d5 {[%clk 00:05:03]} {[%emt 00:00:01]} b5 {[%clk
00:04:46]} {[%emt 00:00:19]} 4. Bg5 {[%clk 00:05:03]} {[%emt 00:00:01]} Qb6
{[%clk 00:04:42]} {[%emt 00:00:08]} 5. c3 {[%clk 00:04:34]} {[%emt 00:00:32]}
g6 {[%clk 00:04:30]} {[%emt 00:00:15]} 6. Bxf6 {[%clk 00:04:34]} {[%emt
00:00:03]} Qxf6 {[%clk 00:04:16]} {[%emt 00:00:17]} 7. Nbd2 {[%clk 00:04:34]}
{[%emt 00:00:01]} Bg7 {[%clk 00:04:13]} {[%emt 00:00:06]} 8. e4 {[%clk
00:04:34]} {[%emt 00:00:02]} Qb6 {[%clk 00:03:56]} {[%emt 00:00:20]} 9. a4
{[%clk 00:04:34]} {[%emt 00:00:03]} bxa4 {[%clk 00:03:52]} {[%emt 00:00:07]} 10.
Nc4 {[%clk 00:04:27]} {[%emt 00:00:09]} Qd8 {[%clk 00:03:22]} {[%emt 00:00:33]}
11. h4 {[%clk 00:04:11]} {[%emt 00:00:19]} d6 {[%clk 00:03:16]} 12. Qxa4+
{[%clk 00:04:08]} {[%emt 00:00:15]} Bd7 {[%emt 00:00:35]} 13. Qa5 {[%clk
00:03:16]} {[%emt 00:00:32]} Qxa5 {[%clk 00:02:37]} 14. Rxa5 {[%clk 00:03:16]}
{[%emt 00:00:34]} a6 {[%clk 00:02:35]} 15. e5 {[%clk 00:02:58]} {[%emt
00:00:26]} Bb5 {[%clk 00:01:45]} 16. Nxd6+ {[%clk 00:02:47]} {[%emt 00:01:07]}
exd6 {[%clk 00:01:44]} {[%emt 00:00:04]} 17. Bxb5+ {[%clk 00:02:47]} {[%emt
00:00:02]} Ke7 {[%clk 00:01:40]} {[%emt 00:00:06]} 18. exd6+ {[%clk 00:02:25]}
{[%emt 00:00:26]} Kxd6 {[%clk 00:01:40]} 19. O-O {[%clk 00:02:25]} {[%emt
00:00:03]} Nd7 {[%clk 00:01:26]} {[%emt 00:00:17]} 20. Bxd7 {[%clk 00:02:25]}
{[%emt 00:00:02]} Kxd7 {[%clk 00:01:26]} {[%emt 00:00:01]} 21. Rxc5 {[%clk
00:02:25]} {[%emt 00:00:01]} Rab8 {[%clk 00:01:18]} {[%emt 00:00:12]} 22. Ra1
{[%clk 00:02:20]} {[%emt 00:00:08]} Rxb2 {[%clk 00:01:14]} {[%emt 00:00:06]} 23.
Rxa6 {[%clk 00:02:20]} {[%emt 00:00:03]} Rb7 {[%clk 00:01:08]} {[%emt
00:00:09]} 24. Ng5 {[%clk 00:02:10]} {[%emt 00:00:13]} Bf8 {[%clk 00:00:23]}
{[%emt 00:00:48]} 25. Rcc6 {[%clk 00:02:04]} {[%emt 00:00:10]} Be7 {[%clk
00:00:19]} {[%emt 00:00:07]} 26. Nxf7 {[%clk 00:01:58]} {[%emt 00:00:09]} Bxh4
{[%clk 00:00:05]} {[%emt 00:00:16]} 27. Ne5+ {[%clk 00:01:57]} {[%emt
00:00:04]} Ke7 {[%clk 00:00:04]} {[%emt 00:00:04]} 28. Re6+ {[%clk 00:01:57]}
{[%emt 00:00:01]} Kd8 {[%clk 00:00:04]} {[%emt 00:00:02]} 29. Ra8+ {[%clk
00:01:57]} {[%emt 00:00:02]} 1-0

[Event "14e Open International de Quenza"]
[Site "Quenza, France"]
[Date "????.??.??"]
[Round "6.1"]
[White "Fressinet, Laurent"]
[Black "Hou, Yifan"]
[Result "1/2-1/2"]
[TimeControl "5min+3s"]
[WhiteElo "2605"]
[BlackElo "2633"]

1. d4 {[%clk 00:05:03]} d5 {[%clk 00:05:03]} {[%emt 00:00:03]} 2. Nf3 {[%clk
00:05:03]} {[%emt 00:00:03]} Nf6 {[%clk 00:05:03]} {[%emt 00:00:01]} 3. c4
{[%clk 00:05:03]} {[%emt 00:00:02]} e6 {[%clk 00:05:03]} 4. Nc3 {[%clk
00:05:03]} {[%emt 00:00:01]} a6 {[%clk 00:05:03]} {[%emt 00:00:02]} 5. c5
{[%clk 00:05:00]} {[%emt 00:00:06]} b6 {[%clk 00:05:01]} {[%emt 00:00:05]} 6.
cxb6 {[%clk 00:05:00]} {[%emt 00:00:03]} c5 {[%clk 00:05:01]} 7. Qb3 {[%clk
00:04:39]} {[%emt 00:00:24]} Bd7 {[%clk 00:04:45]} {[%emt 00:00:19]} 8. Bf4
{[%clk 00:04:24]} {[%emt 00:00:17]} c4 {[%clk 00:04:11]} {[%emt 00:00:38]} 9.
Qc2 {[%clk 00:04:14]} {[%emt 00:00:12]} Qxb6 {[%clk 00:04:11]} {[%emt
00:00:02]} 10. e3 {[%clk 00:04:13]} {[%emt 00:00:04]} Nc6 {[%clk 00:04:08]}
{[%emt 00:00:06]} 11. Be2 {[%clk 00:04:11]} {[%emt 00:00:05]} Nh5 {[%clk
00:03:40]} {[%emt 00:00:31]} 12. Be5 {[%clk 00:04:06]} {[%emt 00:00:08]} f6
{[%clk 00:02:42]} {[%emt 00:01:01]} 13. Bg3 {[%clk 00:04:06]} {[%emt 00:00:02]}
g6 {[%clk 00:02:38]} {[%emt 00:00:08]} 14. O-O {[%clk 00:03:58]} {[%emt
00:00:10]} Nxg3 {[%clk 00:02:34]} {[%emt 00:00:08]} 15. hxg3 {[%clk 00:03:58]}
{[%emt 00:00:02]} Bd6 {[%clk 00:02:32]} {[%emt 00:00:06]} 16. e4 {[%clk
00:03:42]} {[%emt 00:00:20]} Ne7 {[%clk 00:02:20]} {[%emt 00:00:14]} 17. exd5
{[%clk 00:03:36]} {[%emt 00:00:09]} exd5 {[%clk 00:02:20]} {[%emt 00:00:01]} 18.
Nxd5 {[%clk 00:03:31]} {[%emt 00:00:08]} Nxd5 {[%clk 00:01:34]} {[%emt
00:00:50]} 19. Qe4+ {[%clk 00:03:31]} {[%emt 00:00:01]} Kf7 {[%clk 00:01:34]}
20. Bxc4 {[%clk 00:03:27]} {[%emt 00:00:08]} Rhe8 {[%clk 00:01:20]} {[%emt
00:00:17]} 21. Bxd5+ {[%clk 00:03:03]} {[%emt 00:00:27]} Kg7 {[%clk 00:01:20]}
22. Qd3 {[%clk 00:02:30]} {[%emt 00:00:35]} Rac8 {[%clk 00:01:01]} {[%emt
00:00:22]} 23. Rfe1 {[%clk 00:02:25]} {[%emt 00:00:08]} Bf5 {[%clk 00:00:35]}
{[%emt 00:00:29]} 24. Qb3 {[%clk 00:02:16]} {[%emt 00:00:12]} Qxb3 {[%clk
00:00:18]} {[%emt 00:00:20]} 25. Bxb3 {[%clk 00:02:13]} {[%emt 00:00:06]} Bb4
{[%clk 00:00:18]} 26. Rxe8 {[%clk 00:02:11]} {[%emt 00:00:05]} Rxe8 {[%clk
00:00:18]} 27. a3 {[%clk 00:01:41]} {[%emt 00:00:33]} Bd6 {[%clk 00:00:15]}
{[%emt 00:00:05]} 28. Re1 {[%clk 00:01:41]} {[%emt 00:00:02]} Rb8 {[%clk
00:00:13]} {[%emt 00:00:05]} 29. Be6 {[%clk 00:01:32]} {[%emt 00:00:11]} Rxb2
{[%clk 00:00:10]} {[%emt 00:00:07]} 30. Bxf5 {[%clk 00:01:32]} {[%emt
00:00:03]} gxf5 {[%clk 00:00:10]} {[%emt 00:00:01]} 31. Re6 {[%clk 00:01:14]}
{[%emt 00:00:20]} Bxa3 {[%clk 00:00:10]} {[%emt 00:00:02]} 32. Rxa6 {[%clk
00:01:14]} {[%emt 00:00:01]} Bb4 {[%clk 00:00:07]} {[%emt 00:00:05]} 33. Nh4
{[%clk 00:01:05]} {[%emt 00:00:12]} Be1 {[%clk 00:00:07]} {[%emt 00:00:01]} 34.
Nxf5+ {[%clk 00:00:31]} {[%emt 00:00:37]} Kg6 {[%clk 00:00:07]} 35. Ne7+ {[%clk
00:00:18]} {[%emt 00:00:17]} Kf7 {[%clk 00:00:07]} {[%emt 00:00:02]} 36. Nd5
{[%clk 00:00:18]} {[%emt 00:00:01]} Bxf2+ {[%clk 00:00:07]} 37. Kh2 {[%clk
00:00:18]} Bxd4 {[%clk 00:00:07]} {[%emt 00:00:02]} 38. Nf4 {[%clk 00:00:16]}
{[%emt 00:00:04]} Be5 {[%clk 00:00:07]} {[%emt 00:00:03]} 39. Ra7+ {[%clk
00:00:16]} {[%emt 00:00:03]} Kg8 {[%clk 00:00:07]} 40. Ra8+ {[%clk 00:00:16]}
{[%emt 00:00:01]} Kf7 {[%clk 00:00:07]} 41. Ra7+ {[%clk 00:00:16]} {[%emt
00:00:02]} Kg8 {[%clk 00:00:07]} 42. Ra8+ {[%clk 00:00:16]} {[%emt 00:00:01]}
Kf7 {[%clk 00:00:07]} 1/2-1/2

[Event "14e Open International de Quenza"]
[Site "Quenza, France"]
[Date "????.??.??"]
[Round "6.2"]
[White "Bonelli Maestracci, Pierre Joseph"]
[Black "Dardha, Daniel"]
[Result "0-1"]
[TimeControl "5min+3s"]
[WhiteElo "2098"]
[BlackElo "2627"]

1. e4 {[%clk 00:05:03]} c5 {[%clk 00:05:03]} {[%emt 00:00:01]} 2. Nf3 {[%clk
00:05:03]} {[%emt 00:00:01]} d6 {[%clk 00:05:03]} {[%emt 00:00:01]} 3. d4
{[%clk 00:05:03]} Nf6 {[%clk 00:05:03]} {[%emt 00:00:02]} 4. Nc3 {[%clk
00:05:03]} {[%emt 00:00:02]} cxd4 {[%clk 00:05:03]} {[%emt 00:00:01]} 5. Nxd4
{[%clk 00:05:03]} {[%emt 00:00:01]} Nc6 {[%clk 00:05:03]} 6. Nd5 {[%clk
00:05:03]} Nxd5 {[%clk 00:05:01]} {[%emt 00:00:07]} 7. exd5 {[%clk 00:05:03]}
{[%emt 00:00:01]} Qa5+ {[%clk 00:05:01]} 8. Bd2 {[%clk 00:05:03]} {[%emt
00:00:03]} Qxd5 {[%clk 00:05:01]} {[%emt 00:00:01]} 9. Nb5 {[%clk 00:05:03]}
{[%emt 00:00:03]} Qe6+ {[%clk 00:05:01]} 10. Be2 {[%clk 00:05:03]} {[%emt
00:00:01]} Qd7 {[%clk 00:05:01]} 11. c4 {[%clk 00:05:03]} {[%emt 00:00:03]} e6
{[%clk 00:04:52]} {[%emt 00:00:11]} 12. O-O {[%clk 00:05:03]} {[%emt 00:00:04]}
Be7 {[%clk 00:04:52]} {[%emt 00:00:01]} 13. Bf4 {[%clk 00:04:57]} {[%emt
00:00:09]} e5 {[%clk 00:04:52]} {[%emt 00:00:02]} 14. Be3 {[%clk 00:04:57]} O-O
{[%emt 00:00:06]} 15. f4 f5 {[%clk 00:04:34]} {[%emt 00:00:18]} 16. Qd2 {[%clk
00:04:52]} {[%emt 00:00:08]} a6 {[%clk 00:04:24]} {[%emt 00:00:13]} 17. Nc3
{[%clk 00:04:52]} Qe8 {[%clk 00:03:57]} {[%emt 00:00:29]} 18. Nd5 {[%clk
00:04:49]} {[%emt 00:00:06]} Bd8 {[%clk 00:03:57]} {[%emt 00:00:02]} 19. Nc3
{[%clk 00:04:04]} {[%emt 00:00:48]} exf4 {[%clk 00:03:46]} {[%emt 00:00:14]} 20.
Bxf4 {[%clk 00:04:04]} {[%emt 00:00:02]} Bb6+ {[%clk 00:03:46]} {[%emt
00:00:02]} 21. Kh1 {[%clk 00:04:04]} {[%emt 00:00:03]} Be6 {[%clk 00:03:46]}
{[%emt 00:00:03]} 22. Rfe1 {[%clk 00:03:54]} {[%emt 00:00:13]} Qf7 {[%clk
00:03:39]} {[%emt 00:00:10]} 23. Bf3 {[%clk 00:03:44]} {[%emt 00:00:13]} Kh8
{[%clk 00:03:11]} {[%emt 00:00:30]} 24. Nd5 {[%clk 00:03:15]} {[%emt 00:00:32]}
Bc5 {[%clk 00:02:43]} {[%emt 00:00:31]} 25. b4 {[%clk 00:02:30]} {[%emt
00:00:49]} Bd4 {[%clk 00:02:41]} {[%emt 00:00:04]} 26. Rab1 {[%clk 00:02:30]}
{[%emt 00:00:03]} Be5 {[%clk 00:02:39]} {[%emt 00:00:06]} 27. Be3 {[%clk
00:01:43]} {[%emt 00:00:50]} Rac8 {[%clk 00:02:16]} {[%emt 00:00:25]} 28. b5
{[%clk 00:01:25]} {[%emt 00:00:21]} axb5 {[%clk 00:02:16]} {[%emt 00:00:01]} 29.
cxb5 {[%clk 00:01:25]} Na5 {[%clk 00:02:15]} {[%emt 00:00:04]} 30. Qxa5 {[%clk
00:00:31]} {[%emt 00:00:57]} Bxd5 {[%clk 00:02:15]} {[%emt 00:00:01]} 31. Bxd5
{[%clk 00:00:29]} {[%emt 00:00:05]} Qxd5 {[%clk 00:02:15]} 32. Rbd1 {[%clk
00:00:15]} {[%emt 00:00:17]} Qf7 {[%clk 00:02:15]} {[%emt 00:00:02]} 33. Qa4
{[%clk 00:00:14]} {[%emt 00:00:04]} f4 {[%clk 00:02:02]} {[%emt 00:00:16]} 34.
Bf2 {[%clk 00:00:11]} {[%emt 00:00:06]} f3 {[%clk 00:02:00]} {[%emt 00:00:05]}
35. g3 {[%clk 00:00:11]} {[%emt 00:00:02]} Rc4 {[%clk 00:01:46]} {[%emt
00:00:16]} 36. Qb3 {[%clk 00:00:09]} {[%emt 00:00:05]} Qe6 {[%clk 00:01:41]}
{[%emt 00:00:09]} 37. Rc1 {[%clk 00:00:09]} {[%emt 00:00:03]} Qh3 {[%clk
00:01:41]} {[%emt 00:00:02]} 0-1